[Event "Gibraltar Challengers B 2020"]
[Site "Caleta"]
[Date "2020.01.26"]
[Round "2.21"]
[White "Skutta, Bernd"]
[Black "Sousa, Ludy Helsio Paulo"]
[Result "0-1"]
[ECO "B54"]
[WhiteElo "1998"]
[BlackElo "2247"]
[Annotator "ChessBase"]
[PlyCount "81"]
[EventDate "2020.01.20"]
[EventType "swiss"]
[EventCountry "GGB"]
[SourceTitle "playchess.com"]
[Source "ChessBase"]
[SourceQuality "1"]
[TimeControl "6600+10"]

1. e4 {[%emt 0:02:19]} c5 {[%emt 0:01:39]} 2. Nf3 {[%emt 0:01:02]} d6 {[%emt 0:01:26]} 3. d4 {[%emt 0:00:07]} cxd4 {[%emt 0:00:02]} 4. Qxd4 {[%emt 0:00:20]} a6 {[%emt 0:01:18]} 5. c4 {[%emt 0:00:35]} e5 {[%emt 0:00:20]} 6. Qd1 {[%emt 0:00:47]} h6 {[%emt 0:00:13]} 7. Nc3 {[%emt 0:01:55]} Nf6 {[%emt 0:00:30]} 8. Be2 {[%emt 0:01:49]} Be6 {[%emt 0:00:09]} 9. O-O {[%emt 0:00:37]} Nbd7 {[%emt 0:00:04]} 10. Re1 {[%emt 0:11:48]} Rc8 {[%emt 0:00:31]} 11. Nd2 {[%emt 0:04:16]} Be7 {[%emt 0:01:56]} 12. a4 {[%emt 0:02:12]} a5 {[%emt 0:04:37]} 13. b3 {[%emt 0:07:57]} O-O {[%emt 0:00:44]} 14. Bf3 {[%emt 0:01:22]} Nc5 {[%emt 0:00:53]} 15. Nf1 {[%emt 0:01:37]} Nfd7 {[%emt 0:03:56]} 16. Ne3 {[%emt 0:02:14]} Nb8 {[%emt 0:01:59]} 17. Ba3 {[%emt 0:11:22]} Nc6 {[%emt 0:05:41]} 18. Nb5 {[%emt 0:02:44]} Qb6 {[%emt 0:14:07]} 19. Rb1 {[%emt 0:00:46]} Na7 {[%emt 0:05:28]} 20. Nc3 {[%emt 0:02:40]} Qd8 {[%emt 0:02:49]} 21. Re2 {[%emt 0:13:51]} Bg5 {[%emt 0:01:33]} 22. g3 {[%emt 0:14:54]} Bxe3 {[%emt 0:01:43]} 23. Rxe3 {[%emt 0:00:24]} Qb6 {[%emt 0:03:46]} 24. Re2 {[%emt 0:02:11]} Kh8 {[%emt 0:08:48]} 25. Rd2 {[%emt 0:00:42]} Rcd8 {[%emt 0:03:47]} 26. Bg2 {[%emt 0:04:45]} Nc8 {[%emt 0:03:33]} 27. Nb5 {[%emt 0:00:23]} Rd7 {[%emt 0:00:21]} 28. Bc1 {[%emt 0:07:27]} f5 {[%emt 0:00:48]} 29. Nc3 {[%emt 0:04:58]} Nxe4 {[%emt 0:05:47]} 30. Nxe4 {[%emt 0:03:00]} fxe4 {[%emt 0:00:02]} 31. Bxe4 {[%emt 0:00:15]} Ne7 {[%emt 0:05:51]} 32. Qc2 {[%emt 0:02:02]} Nc6 {[%emt 0:06:36]} 33. Bb2 {[%emt 0:00:21]} Nb4 {[%emt 0:00:52]} 34. Qd1 {[%emt 0:00:16]} Rdf7 {[%emt 0:00:08]} 35. Qe1 {[%emt 0:01:27]} Bf5 {[%emt 0:01:14]} 36. Bxf5 {[%emt 0:00:18]} Rxf5 {[%emt 0:00:01]} 37. Qe3 {[%emt 0:00:06]} Qc6 {[%emt 0:00:32]} 38. Rf1 {[%emt 0:00:19]} Rf3 {[%emt 0:00:16]} 39. Qe2 {[%emt 0:00:09]} Rxb3 {[%emt 0:00:29]} 40. Ba1 {[%emt 0:00:12]} Rbf3 {[%emt 0:01:20]} 41. Qd1 {[%emt 0:00:16]} 0-1

[Event "Gibraltar Challengers B 2020"]
[Site "Caleta"]
[Date "2020.01.26"]
[Round "2.22"]
[White "Meszaros, Andras"]
[Black "Boardman, Jeffrey"]
[Result "1-0"]
[ECO "D11"]
[WhiteElo "2244"]
[BlackElo "1972"]
[Annotator "ChessBase"]
[PlyCount "64"]
[EventDate "2020.01.20"]
[EventType "swiss"]
[EventCountry "GGB"]
[SourceTitle "playchess.com"]
[Source "ChessBase"]
[SourceQuality "1"]
[TimeControl "6600+10"]

1. Nf3 {[%emt 0:03:29]} d5 {[%emt 0:00:37]} 2. c4 {[%emt 0:00:21]} c6 {[%emt 0:00:07]} 3. e3 {[%emt 0:00:25]} Nf6 {[%emt 0:00:55]} 4. d4 {[%emt 0:00:11]} a6 {[%emt 0:00:11]} 5. Nbd2 {[%emt 0:00:30]} Bf5 {[%emt 0:00:41]} 6. Ne5 {[%emt 0:01:01]} e6 {[%emt 0:01:58]} 7. g4 {[%emt 0:00:33]} Bg6 {[%emt 0:02:17]} 8. h4 {[%emt 0:00:07]} dxc4 {[%emt 0:03:44]} 9. Bxc4 {[%emt 0:02:00]} Be4 {[%emt 0:02:01]} 10. Nxe4 {[%emt 0:13:13]} Nxe4 {[%emt 0:00:26]} 11. Qf3 {[%emt 0:01:38]} Bb4+ {[%emt 0:02:17]} 12. Ke2 {[%emt 0:02:53]} Nd6 {[%emt 0:00:45]} 13. a3 {[%emt 0:00:48]} Ba5 {[%emt 0:00:09]} 14. b4 {[%emt 0:00:07]} Bc7 {[%emt 0:01:12]} 15. Bb2 {[%emt 0:02:37]} f6 {[%emt 0:07:10]} 16. Bxe6 {[%emt 0:00:07]} Qe7 {[%emt 0:00:06]} 17. Bb3 {[%emt 0:00:18]} fxe5 {[%emt 0:01:14]} 18. dxe5 {[%emt 0:00:07]} Nf7 {[%emt 0:06:58]} 19. Qf5 {[%emt 0:00:10]} Nxe5 {[%emt 0:14:34]} 20. Bxe5 {[%emt 0:01:53]} Bxe5 {[%emt 0:02:39]} 21. Qc8+ {[%emt 0:01:50]} Qd8 {[%emt 0:00:13]} 22. Qxb7 {[%emt 0:00:22]} Nd7 {[%emt 0:01:57]} 23. Rad1 {[%emt 0:00:47]} Rc8 {[%emt 0:09:23]} 24. f4 {[%emt 0:00:18]} Qc7 {[%emt 0:06:00]} 25. Qxa6 {[%emt 0:01:33]} Ke7 {[%emt 0:15:50]} 26. Qc4 {[%emt 0:01:44]} Rce8 {[%emt 0:11:18]} 27. fxe5 {[%emt 0:10:32]} Rhf8 {[%emt 0:00:07]} 28. Rd6 {[%emt 0:03:01]} Kd8 {[%emt 0:03:01]} 29. Rhd1 {[%emt 0:00:57]} Rxe5 {[%emt 0:00:09]} 30. Rxd7+ {[%emt 0:00:30]} Qxd7 {[%emt 0:00:01]} 31. Rxd7+ {[%emt 0:00:07]} Kxd7 {[%emt 0:00:05]} 32. Qd4+ {[%emt 0:00:04]} Ke8 {[%emt 0:00:08]} 1-0

[Event "Gibraltar Challengers B 2020"]
[Site "Caleta"]
[Date "2020.01.26"]
[Round "2.23"]
[White "Tejaswini, Sagar"]
[Black "Nergard, Ole-Kristian"]
[Result "1-0"]
[ECO "B78"]
[WhiteElo "2180"]
[BlackElo "1667"]
[Annotator "ChessBase"]
[PlyCount "43"]
[EventDate "2020.01.20"]
[EventType "swiss"]
[EventCountry "GGB"]
[SourceTitle "playchess.com"]
[Source "ChessBase"]
[SourceQuality "1"]
[TimeControl "6600+10"]

1. e4 {[%emt 0:00:00]} c5 {[%emt 0:05:05]} 2. Nf3 {[%emt 0:00:00]} d6 {[%emt 0:00:02]} 3. d4 {[%emt 0:00:04]} cxd4 {[%emt 0:00:08]} 4. Nxd4 {[%emt 0:00:03]} Nf6 {[%emt 0:00:26]} 5. Nc3 {[%emt 0:00:06]} g6 {[%emt 0:00:09]} 6. Be3 {[%emt 0:00:08]} Bg7 {[%emt 0:00:07]} 7. f3 {[%emt 0:00:08]} Nc6 {[%emt 0:00:13]} 8. Qd2 {[%emt 0:01:58]} O-O {[%emt 0:00:14]} 9. Bc4 {[%emt 0:00:18]} Bd7 {[%emt 0:00:28]} 10. O-O-O {[%emt 0:00:21]} Rc8 {[%emt 0:00:44]} 11. Bb3 {[%emt 0:00:19]} Ne5 {[%emt 0:03:22]} 12. Kb1 {[%emt 0:00:38]} Nc4 {[%emt 0:00:26]} 13. Bxc4 {[%emt 0:00:27]} Rxc4 {[%emt 0:00:03]} 14. g4 {[%emt 0:00:51]} Qc7 {[%emt 0:20:57]} 15. Nde2 {[%emt 0:22:55]} b5 {[%emt 0:07:20]} 16. e5 {[%emt 0:08:23]} b4 {[%emt 0:07:07]} 17. exf6 {[%emt 0:00:29]} bxc3 {[%emt 0:00:41]} 18. Nxc3 {[%emt 0:00:24]} Bxf6 {[%emt 0:00:55]} 19. Nd5 {[%emt 0:01:41]} Rb8 {[%emt 0:07:04]} 20. b3 {[%emt 0:03:45]} Bc3 {[%emt 0:06:14]} 21. Qd3 {[%emt 0:04:52]} Qa5 {[%emt 0:02:00]} 22. Qxc4 {[%emt 0:01:50]} 1-0

[Event "Gibraltar Challengers B 2020"]
[Site "Caleta"]
[Date "2020.01.26"]
[Round "2.24"]
[White "George, Lolomari Erekosima"]
[Black "Filipovich, David"]
[Result "1-0"]
[ECO "A42"]
[WhiteElo "2053"]
[BlackElo "1995"]
[Annotator "NA"]
[PlyCount "57"]
[EventDate "2020.01.20"]
[EventType "swiss"]
[EventCountry "GGB"]
[SourceTitle "playchess.com"]
[Source "ChessBase"]
[SourceQuality "1"]
[TimeControl "6600+10"]

1. d4 {[%emt 0:00:26]} g6 {[%emt 0:02:57]} 2. c4 {[%emt 0:00:32]} Bg7 {[%emt 0:00:23]} 3. Nf3 {[%emt 0:00:03]} d6 {[%emt 0:00:31]} 4. g3 {[%emt 0:00:17]} Nd7 {[%emt 0:00:57]} 5. Bg2 {[%emt 0:01:16]} e5 {[%emt 0:00:55]} 6. O-O {[%emt 0:00:22]} Ne7 {[%emt 0:00:19]} 7. Nc3 {[%emt 0:00:44]} O-O {[%emt 0:00:35]} 8. e4 {[%emt 0:01:07]} exd4 {[%emt 0:01:01]} 9. Nxd4 {[%emt 0:00:03]} Nc6 {[%emt 0:00:11]} 10. Nde2 {[%emt 0:05:22]} a5 {[%emt 0:03:13]} 11. Rb1 {[%emt 0:02:25]} Nc5 {[%emt 0:05:24]} 12. Be3 $11 {[%emt 0:10:30]} Be6 {[%emt 0:16:58]} 13. b3 {[%emt 0:15:11]} f5 {[%emt 0:01:05]} 14. Nd4 {[%emt 0:03:45]} f4 {[%emt 0:21:34]} 15. gxf4 {[%emt 0:18:00]} Nxd4 {[%emt 0:11:36]} 16. Bxd4 {[%emt 0:00:03]} Bxd4 {[%emt 0:04:36]} 17. Qxd4 {[%emt 0:00:03]} Rxf4 {[%emt 0:00:45]} 18. Ne2 {[%emt 0:05:57]} Rg4 {[%emt 0:05:36]} 19. f3 {[%emt 0:07:36]} Rh4 {[%emt 0:04:20]} 20. f4 {[%emt 0:04:57]} Bh3 {[%emt 0:04:07]} 21. Ng3 {[%emt 0:07:01]} Bxg2 {[%emt 0:03:50]} 22. Kxg2 {[%emt 0:00:14]} Qd7 {[%emt 0:00:45]} 23. f5 {[%emt 0:02:12]} Re8 {[%emt 0:01:53]} 24. Qd5+ {[%emt 0:03:56]} Kg7 {[%emt 0:00:23]} 25. Qd4+ {[%emt 0:02:04]} Re5 {[%emt 0:00:49]} 26. Rbd1 {[%emt 0:02:47]} Qc6 {[%emt 0:00:37]} 27. fxg6 {[%emt 0:01:47]} Nxe4 {[%emt 0:13:52]} 28. Nf5+ {[%emt 0:01:54]} Kg8 {[%emt 0:00:14]} 29. Ne7+ {[%emt 0:04:27]} 1-0

[Event "Gibraltar Challengers B 2020"]
[Site "Caleta"]
[Date "2020.01.26"]
[Round "2.25"]
[White "Bujakevich, Aleksandr"]
[Black "Rodriguez Perez, Angel Mariano"]
[Result "1-0"]
[ECO "B22"]
[WhiteElo "2014"]
[BlackElo "2220"]
[Annotator "NA"]
[PlyCount "119"]
[EventDate "2020.01.20"]
[EventType "swiss"]
[EventCountry "GGB"]
[SourceTitle "playchess.com"]
[Source "ChessBase"]
[SourceQuality "1"]
[TimeControl "6600+10"]

1. e4 {[%emt 0:03:24]} c5 {[%emt 0:00:00]} 2. c3 {[%emt 0:00:14]} Nf6 {[%emt 0:00:00]} 3. e5 {[%emt 0:00:28]} Nd5 {[%emt 0:00:04]} 4. Bc4 {[%emt 0:01:04]} Nb6 {[%emt 0:00:04]} 5. Bb3 {[%emt 0:00:06]} d5 {[%emt 0:00:14]} 6. exd6 {[%emt 0:00:18]} c4 {[%emt 0:01:55]} 7. Bxc4 {[%emt 0:02:43] Decoy} Nxc4 {[%emt 0:02:09]} 8. Qa4+ {[%emt 0:02:13] Double Attack} b5 {[%emt 0:02:44]} 9. Qxb5+ {[%emt 0:00:21]} Qd7 $1 {[%emt 0:00:50]} 10. Qxc4 {[%emt 0:01:44]} Ba6 {[%emt 0:00:17]} 11. Qf4 {[%emt 0:20:35]} Nc6 {[%emt 0:22:07]} 12. Ne2 {[%emt 0:19:12]} (12. d4 $16) 12... f6 {[%emt 0:14:24]} (12... e5 $1 $11 13. Qe3 Bxd6) 13. Qe4 {[%emt 0:06:34]} ({White should play} 13. dxe7 $16 Qxe7 14. Qe3) 13... Qxd6 {[%emt 0:05:11]} 14. d4 $16 {[%emt 0:06:39]} e5 {[%emt 0:10:51]} 15. dxe5 {[%emt 0:06:25]} fxe5 {[%emt 0:03:33]} 16. O-O {[%emt 0:08:48]} Be7 {[%emt 0:02:41]} 17. c4 {[%emt 0:02:45]} O-O {[%emt 0:02:28]} 18. Nbc3 {[%emt 0:02:59]} Nb4 {[%emt 0:07:59]} 19. Be3 {[%emt 0:02:31]} Qc7 {[%emt 0:02:08]} 20. Rfd1 {[%emt 0:07:13]} Bxc4 {[%emt 0:04:23]} 21. a3 {[%emt 0:00:31]} Qc6 {[%emt 0:02:23]} 22. Qxe5 {[%emt 0:05:23]} Bf6 {[%emt 0:07:13]} 23. Qc5 {[%emt 0:00:39]} Qxc5 {[%emt 0:00:27]} 24. Bxc5 {[%emt 0:00:02]} Rfe8 {[%emt 0:00:20]} 25. Bxb4 {[%emt 0:03:14]} Bxe2 {[%emt 0:00:08]} 26. Nxe2 {[%emt 0:01:29]} Rxe2 {[%emt 0:00:04]} 27. Bc3 {[%emt 0:01:10]} Bxc3 {[%emt 0:00:28]} 28. bxc3 {[%emt 0:00:01]} Rc8 {[%emt 0:02:29]} 29. Rac1 {[%emt 0:01:42]} Ra2 {[%emt 0:00:39]} 30. c4 {[%emt 0:00:58]} Rxa3 {[%emt 0:00:33]} 31. c5 {[%emt 0:00:06]} Ra6 {[%emt 0:00:17]} 32. f4 {[%emt 0:00:59]} Rac6 {[%emt 0:00:10]} 33. Rd5 {[%emt 0:00:06]} a5 {[%emt 0:00:36]} 34. Kf2 {[%emt 0:00:04]} Rb8 {[%emt 0:01:59]} 35. Ke3 {[%emt 0:00:38]} a4 {[%emt 0:00:32]} 36. Rd6 {[%emt 0:01:04]} Rxd6 {[%emt 0:01:18]} 37. cxd6 {[%emt 0:00:02]} Rd8 {[%emt 0:00:14]} 38. Rc6 {[%emt 0:00:08]} a3 {[%emt 0:00:30]} 39. Ra6 {[%emt 0:00:03]} a2 {[%emt 0:00:21]} 40. Ke4 {[%emt 0:00:04]} Rxd6 {[%emt 0:00:59]} 41. Rxa2 {[%emt 0:00:03]} Kf7 {[%emt 0:01:02]} 42. g4 {[%emt 0:00:25]} Rd7 {[%emt 0:02:54]} 43. h4 {[%emt 0:00:25]} Rb7 {[%emt 0:00:29]} 44. Rd2 {[%emt 0:00:15]} Re7+ {[%emt 0:00:23]} 45. Kf3 {[%emt 0:00:15]} Ra7 {[%emt 0:00:09]} 46. h5 {[%emt 0:00:25]} h6 {[%emt 0:00:51]} 47. Rd6 {[%emt 0:00:27]} Re7 {[%emt 0:00:44]} 48. g5 {[%emt 0:00:25]} hxg5 {[%emt 0:00:30]} 49. fxg5 {[%emt 0:00:01]} Ra7 {[%emt 0:00:22]} 50. Rd4 {[%emt 0:00:10]} Ra3+ {[%emt 0:01:06]} 51. Kf4 {[%emt 0:00:13]} Ra8 {[%emt 0:02:10]} 52. Rd7+ {[%emt 0:00:12]} Kf8 {[%emt 0:00:30]} 53. Kf5 {[%emt 0:00:07]} Ra5+ {[%emt 0:00:05]} 54. Kg6 {[%emt 0:00:02]} Ra6+ {[%emt 0:01:27]} 55. Kh7 {[%emt 0:00:03]} Ra5 {[%emt 0:00:33]} 56. Rxg7 {[%emt 0:00:02]} Rf5 {[%emt 0:00:03]} 57. h6 {[%emt 0:00:05]} Ra5 {[%emt 0:00:12]} 58. g6 {[%emt 0:00:04]} Rh5 {[%emt 0:00:16]} 59. Ra7 {[%emt 0:00:03]} Rh1 {[%emt 0:00:10]} 60. g7+ {[%emt 0:00:03]} 1-0

[Event "Gibraltar Challengers B 2020"]
[Site "Caleta"]
[Date "2020.01.26"]
[Round "2.26"]
[White "Godoy Olazabal, Artur"]
[Black "Gonzalvez Tamarit, Ivan"]
[Result "1-0"]
[ECO "D01"]
[WhiteElo "2154"]
[BlackElo "1918"]
[Annotator "ChessBase"]
[PlyCount "55"]
[EventDate "2020.01.20"]
[EventType "swiss"]
[EventCountry "GGB"]
[SourceTitle "playchess.com"]
[Source "ChessBase"]
[SourceQuality "1"]
[TimeControl "6600+10"]

1. d4 {[%emt 0:07:34]} Nf6 {[%emt 0:00:41]} 2. Nc3 {[%emt 0:00:34]} d5 {[%emt 0:01:46]} 3. Bg5 {[%emt 0:00:05]} Bf5 {[%emt 0:03:17]} 4. f3 {[%emt 0:00:27]} c6 {[%emt 0:08:04]} 5. g4 {[%emt 0:03:02]} Bg6 {[%emt 0:03:12]} 6. Qd2 {[%emt 0:03:35]} h5 {[%emt 0:11:16]} 7. gxh5 {[%emt 0:00:48]} Bxh5 {[%emt 0:04:42]} 8. e4 {[%emt 0:02:52]} dxe4 {[%emt 0:05:20]} 9. fxe4 {[%emt 0:00:54]} Nbd7 {[%emt 0:04:46]} 10. Be2 {[%emt 0:06:24]} Bg6 {[%emt 0:07:24]} 11. Qf4 {[%emt 0:11:05]} Nh5 {[%emt 0:15:52]} 12. Qe3 {[%emt 0:02:24]} Qc7 {[%emt 0:06:58]} 13. Bf3 {[%emt 0:04:57]} f6 {[%emt 0:03:47]} 14. Bh4 {[%emt 0:00:22]} e5 {[%emt 0:02:30]} 15. Nge2 {[%emt 0:02:04]} Bd6 {[%emt 0:02:02]} 16. O-O-O {[%emt 0:03:39]} exd4 {[%emt 0:05:42]} 17. Qxd4 {[%emt 0:12:00]} Be5 {[%emt 0:01:45]} 18. Qg1 {[%emt 0:04:24]} Nf4 {[%emt 0:02:05]} 19. Kb1 {[%emt 0:05:45]} Kf7 {[%emt 0:07:03]} 20. Bf2 {[%emt 0:15:25]} Nxe2 {[%emt 0:04:03]} 21. Bxe2 {[%emt 0:00:06]} Bxc3 {[%emt 0:01:13]} 22. Bc4+ {[%emt 0:00:10]} Ke7 {[%emt 0:05:29]} 23. Qxg6 {[%emt 0:00:19]} Rae8 {[%emt 0:03:32]} 24. bxc3 {[%emt 0:03:26]} Kd8 {[%emt 0:00:15]} 25. Qxg7 {[%emt 0:00:31]} Kc8 {[%emt 0:00:01]} 26. Be6 {[%emt 0:00:46]} Rh5 {[%emt 0:01:17]} 27. Rxd7 {[%emt 0:01:52]} Rb5+ {[%emt 0:00:16]} 28. Ka1 {[%emt 0:00:09]} 1-0

[Event "Gibraltar Challengers B 2020"]
[Site "Caleta"]
[Date "2020.01.26"]
[Round "2.27"]
[White "Obiamiwe, Paul"]
[Black "Kukic, Boris"]
[Result "1/2-1/2"]
[ECO "D38"]
[WhiteElo "1920"]
[BlackElo "2056"]
[Annotator "NA"]
[PlyCount "149"]
[EventDate "2020.01.20"]
[EventType "swiss"]
[EventCountry "GGB"]
[SourceTitle "playchess.com"]
[Source "ChessBase"]
[SourceQuality "1"]
[TimeControl "6600+10"]

1. Nf3 {[%emt 0:00:00]} d5 {[%emt 0:00:10]} 2. d4 {[%emt 0:00:00]} Nf6 {[%emt 0:00:11]} 3. c4 {[%emt 0:00:03]} e6 {[%emt 0:00:18]} 4. cxd5 {[%emt 0:01:26]} exd5 {[%emt 0:00:28]} 5. Nc3 {[%emt 0:00:06]} c6 {[%emt 0:00:11]} 6. Qc2 {[%emt 0:00:14]} Bb4 {[%emt 0:02:12]} 7. Bg5 {[%emt 0:00:14]} O-O {[%emt 0:00:26] D38: Queen's Gambit Declined: Ragozin Defence (4 Nf3 Bb4)} 8. e3 {[%emt 0:00:18]} h6 {[%emt 0:00:15]} 9. Bh4 {[%emt 0:00:24]} Be7 {[%emt 0:00:45]} 10. Bd3 {[%emt 0:01:06]} Nbd7 {[%emt 0:00:42]} 11. h3 {[%emt 0:01:04]} (11. O-O Nh5 12. Bxe7 Qxe7 13. Rab1 Nhf6 14. b4 b6 15. a4 a5 16. bxa5 Rxa5 17. Nd2 Ba6 18. Nb3 Bxd3 19. Qxd3 Ra7 20. Rfc1 Qe6 {½-½ (67) Sedlak,N (2559)-Nemeth,M (2499) Hungary 2014}) 11... Ne8 $146 {[%emt 0:00:13]} ({Predecessor:} 11... Re8 12. g4 Ne4 13. Bxe4 Bxh4 14. Bh7+ Kh8 15. O-O-O Nf8 {0-1 (45) Velasco,L (1800)-Cardona,F (2035) Bogota 2015}) 12. Bg3 {[%emt 0:00:44]} Ndf6 {[%emt 0:00:39]} 13. O-O {[%emt 0:00:32]} Nd6 {[%emt 0:00:14]} 14. Ne5 {[%emt 0:00:24]} a6 {[%emt 0:01:25]} 15. Rad1 {[%emt 0:05:26]} Be6 {[%emt 0:09:40]} 16. Na4 {[%emt 0:01:34]} Nde4 $1 {[%emt 0:00:26]} 17. Bh2 {[%emt 0:01:09]} Re8 {[%emt 0:05:15]} 18. f3 {[%emt 0:00:50]} Ng5 {[%emt 0:00:33]} 19. Nc5 {[%emt 0:03:10]} Bxc5 {[%emt 0:00:39]} 20. Qxc5 {[%emt 0:00:23]} Nd7 {[%emt 0:00:29]} 21. Qc2 {[%emt 0:01:12]} Nxe5 {[%emt 0:00:35]} 22. Bxe5 {[%emt 0:00:47]} f6 {[%emt 0:03:30]} 23. Bg3 {[%emt 0:01:30]} Qd7 {[%emt 0:01:53]} 24. h4 {[%emt 0:03:20]} Nf7 {[%emt 0:00:18]} 25. Bh7+ {[%emt 0:01:07]} Kh8 {[%emt 0:00:27]} 26. Bg6 {[%emt 0:01:13]} Rf8 {[%emt 0:01:30]} 27. Qb3 {[%emt 0:09:34]} Nd6 {[%emt 0:03:21]} 28. Bb1 {[%emt 0:03:38]} Nc4 {[%emt 0:06:28]} 29. Rfe1 {[%emt 0:01:24]} Bg8 {[%emt 0:00:41]} 30. Qc3 {[%emt 0:02:44]} Rac8 {[%emt 0:01:57]} 31. b3 {[%emt 0:02:16]} Nd6 {[%emt 0:02:03]} 32. Qb4 {[%emt 0:00:49]} Nf7 {[%emt 0:06:21]} 33. e4 $16 {[%emt 0:03:39]} dxe4 {[%emt 0:06:19]} 34. fxe4 {[%emt 0:00:31]} Qg4 {[%emt 0:01:07]} 35. Qc3 {[%emt 0:03:16]} Rcd8 {[%emt 0:03:46]} 36. Qf3 {[%emt 0:02:43]} Qd7 {[%emt 0:01:13]} 37. e5 {[%emt 0:01:51]} fxe5 {[%emt 0:02:03]} 38. dxe5 {[%emt 0:01:05]} Qe7 {[%emt 0:00:46]} 39. Qe2 {[%emt 0:15:36]} Rxd1 {[%emt 0:00:45]} 40. Rxd1 {[%emt 0:01:19]} Nd8 {[%emt 0:00:13]} 41. Qd3 {[%emt 0:01:48]} Ne6 {[%emt 0:00:50]} 42. Qe4 {[%emt 0:04:15]} Rd8 {[%emt 0:07:37]} 43. Rd6 {[%emt 0:00:50]} Re8 {[%emt 0:01:25]} 44. Qe3 {[%emt 0:02:06]} c5 {[%emt 0:01:38]} 45. Qe4 {[%emt 0:04:08]} Rc8 {[%emt 0:02:45]} 46. Bf2 {[%emt 0:05:53]} b5 {[%emt 0:01:53]} 47. Rxa6 {[%emt 0:01:17]} c4 {[%emt 0:00:13]} 48. Rc6 {[%emt 0:02:42]} Rb8 {[%emt 0:03:56]} 49. Bc2 {[%emt 0:02:41]} Nf8 {[%emt 0:01:04]} 50. Qd4 {[%emt 0:04:35]} Ne6 {[%emt 0:01:56]} 51. Qd6 {[%emt 0:00:21]} Qe8 {[%emt 0:00:38]} 52. Bf5 {[%emt 0:00:28]} Rd8 {[%emt 0:00:41]} 53. Qxd8 {[%emt 0:07:12]} Nxd8 {[%emt 0:00:28]} 54. Rc8 {[%emt 0:00:26]} Qxe5 {[%emt 0:00:32]} 55. Bh3 {[%emt 0:00:58]} Ne6 {[%emt 0:00:17]} 56. Re8 {[%emt 0:00:11]} Qa1+ {[%emt 0:00:13]} 57. Kh2 {[%emt 0:00:04]} Qf6 {[%emt 0:01:49]} 58. Bxe6 {[%emt 0:00:11]} Qxf2 {[%emt 0:00:27]} 59. Bxg8 {[%emt 0:00:15]} g5 {[%emt 0:00:28]} 60. hxg5 {[%emt 0:00:05]} Kg7 {[%emt 0:00:23]} 61. gxh6+ {[%emt 0:00:19]} Kxh6 {[%emt 0:00:07]} 62. bxc4 {[%emt 0:00:20]} bxc4 {[%emt 0:00:53]} 63. Bxc4 {[%emt 0:00:32]} Qh4+ {[%emt 0:00:07]} 64. Kg1 {[%emt 0:00:03]} Qxc4 {[%emt 0:00:03]} 65. Re1 {[%emt 0:00:05]} Qxa2 {[%emt 0:00:22]} 66. Re3 {[%emt 0:00:11]} Kg5 {[%emt 0:00:09]} 67. Rf3 {[%emt 0:00:01]} Kg4 {[%emt 0:00:17]} 68. Kh2 {[%emt 0:00:08]} Qb1 {[%emt 0:00:33]} 69. Rg3+ {[%emt 0:00:02]} Kf4 {[%emt 0:01:04]} 70. Rf3+ {[%emt 0:00:01]} Ke4 {[%emt 0:00:10]} 71. Rh3 {[%emt 0:00:13]} Qd1 {[%emt 0:00:16]} 72. Rf3 {[%emt 0:00:05]} Qe1 {[%emt 0:00:22]} 73. Rh3 {[%emt 0:00:10]} Kf4 {[%emt 0:00:04]} 74. Rf3+ {[%emt 0:00:02]} Kg4 {[%emt 0:00:18]} 75. Rh3 {[%emt 0:00:09]} 1/2-1/2

[Event "Gibraltar Challengers B 2020"]
[Site "Caleta"]
[Date "2020.01.26"]
[Round "2.28"]
[White "Ruiz Buendia, Miguel"]
[Black "Verhoef, Jaap"]
[Result "1-0"]
[ECO "C28"]
[WhiteElo "1917"]
[BlackElo "2015"]
[Annotator "NA"]
[PlyCount "63"]
[EventDate "2020.01.20"]
[EventType "swiss"]
[EventCountry "GGB"]
[SourceTitle "playchess.com"]
[Source "ChessBase"]
[SourceQuality "1"]
[TimeControl "6600+10"]

1. e4 {[%emt 0:00:14]} e5 {[%emt 0:00:00]} 2. Nc3 {[%emt 0:00:07]} Nc6 {[%emt 0:00:00]} 3. Bc4 {[%emt 0:00:18]} Nf6 {[%emt 0:00:00]} 4. d3 {[%emt 0:00:09]} Bb4 {[%emt 0:00:00]} 5. Nge2 {[%emt 0:00:13]} d5 {[%emt 0:00:04]} 6. exd5 {[%emt 0:00:05]} Nxd5 {[%emt 0:00:12]} 7. O-O {[%emt 0:00:10]} Be6 {[%emt 0:03:53]} 8. Bxd5 {[%emt 0:00:14]} Bxd5 {[%emt 0:00:06]} 9. f4 {[%emt 0:00:06]} Qd7 {[%emt 0:02:47]} 10. fxe5 {[%emt 0:05:21]} Nxe5 {[%emt 0:17:28]} 11. Nxd5 {[%emt 0:01:28]} Qxd5 {[%emt 0:00:02]} 12. Nf4 {[%emt 0:16:36]} Qd6 {[%emt 0:18:22]} 13. d4 {[%emt 0:23:08]} O-O-O {[%emt 0:04:52]} 14. c3 {[%emt 0:00:56]} Ba5 {[%emt 0:00:04]} 15. b4 {[%emt 0:05:10]} Bb6 {[%emt 0:00:13]} 16. Kh1 $14 {[%emt 0:01:38]} h5 {[%emt 0:06:00]} 17. a4 {[%emt 0:03:04]} c6 {[%emt 0:13:34]} 18. Qb3 {[%emt 0:03:04]} Ng4 {[%emt 0:07:29]} 19. h3 {[%emt 0:03:28]} g5 {[%emt 0:01:02]} 20. a5 {[%emt 0:08:29]} Bc7 {[%emt 0:00:47]} 21. b5 {[%emt 0:01:48]} gxf4 {[%emt 0:12:17]} 22. Bxf4 {[%emt 0:01:19]} Qg6 {[%emt 0:00:51]} 23. b6 {[%emt 0:08:31]} Bb8 {[%emt 0:06:36]} 24. Bxb8 {[%emt 0:06:30]} Ne3 {[%emt 0:00:03]} 25. Rf2 {[%emt 0:03:34]} Kxb8 {[%emt 0:00:05]} 26. a6 {[%emt 0:09:18]} axb6 {[%emt 0:00:47]} 27. Qxb6 {[%emt 0:01:29]} Rd7 {[%emt 0:00:03]} 28. Rb2 {[%emt 0:00:48]} Nc4 {[%emt 0:00:37]} 29. Qa7+ {[%emt 0:00:49]} Kxa7 {[%emt 0:00:55]} 30. axb7+ {[%emt 0:00:05]} Kb8 {[%emt 0:00:06]} 31. Ra8+ {[%emt 0:00:04]} Kc7 {[%emt 0:00:23]} 32. Rxh8 {[%emt 0:00:07]} 1-0